Cogmind - Beta 13 @@@ ROGUE MODE // 2024.04.23 @ 02:20:04 Player: Millea Result: Destroyed by S-27 Virus with Autogun Performance ------------- Evolutions (6) 3000 Regions Visited (21) 4200 Robots Destroyed (415) 2075 Value Destroyed (19234) 19234 Prototype IDs (22) 440 Alien Tech Used (0) 0 Bonus (14008) 14008 TOTAL SCORE: 42957 Bonus ------- High Alert Combat Kills 8251 Follower Combat Kills 2244 Entered Garrisons 400 Used RIF Installer 1500 Network Hubs Disabled 600 Built Enhanced Grunts 300 A7 Reached Mainframe 300 Met R17 at Cetus 500 Friendly Fire -87 Cogmind --------- Core Integrity 0/1150 Matter 239/300 Energy 42/100 System Corruption 18% Temperature Cool (0) Movement Immobile (Siege) Location -4/Upper Caves Parts ------- > --- POWER (2) -------- (None) > --- PROPULSION (4) --- Heavy Treads > --- UTILITY (10) ----- Large Storage Unit Advanced Signal Interpreter > --- WEAPON (3) ------- Quantum Rifle Autogun Powered Hammer > --- INVENTORY (15) --- Light Ion Engine Light Antimatter Reactor Matter Filter Advanced Reaction Control System Cloaking Device Improved Core Shielding Experimental EM Disruption Field Advanced Dynamic Insulation System Enhanced Flamer Peak State ------------ > --- POWER ------------ Quantum Reactor Quantum Reactor > --- PROPULSION ------- Centrium Heavy Treads Centrium Heavy Treads > --- UTILITY ---------- Advanced Power Amplifier Experimental Heat Sink Experimental Heat Sink Large Storage Unit Advanced Signal Interpreter Centrium Medium Armor Plating Centrium Medium Armor Plating Centrium Medium Armor Plating Centrium Medium Armor Plating Experimental Thermal Shield > --- WEAPON ----------- Advanced KE Penetrator Advanced KE Penetrator Advanced KE Penetrator > --- INVENTORY -------- Neutrino Core Centrium Heavy Treads Centrium Heavy Treads Improved Medium Armor Plating Experimental EM Disruption Field Improved Hacking Suite Advanced Hacking Suite EMDS Gauss Rifle KE Penetrator [Rating: 159] Favorites ----------- Power Neutrino Core Engine Reinforced Deuterium Engine Power Core Neutrino Core Reactor Quantum Reactor Propulsion Light Treads Treads Light Treads Leg Carbon-fiber Leg Wheel Wheel Hover Unit Gyrokinetic Inverter Flight Unit Nuclear Pulse Array Utility High-capacity Storage Unit Device Advanced Heat Sink Storage High-capacity Storage Unit Processor Core Analyzer Hackware System Shield Protection Centrium Medium Armor Plating Weapon Advanced KE Penetrator Energy Gun Gatling Laser Energy Cannon Heavy Plasma Cannon Ballistic Gun Advanced KE Penetrator Ballistic Cannon Magnetic Acceleration Cannon Launcher Heavy Missile Launcher Special Weapon Improved Plasma Cutter Impact Weapon Powered Hammer Slashing Weapon Phasing Sabre Piercing Weapon Enhanced Force Lance Build | -11 -10 -9 -9 -8 -7 -7 -7 -7 -6 -6 -6 -5 -5 -5 -5 -5 -5 -5 -4 -4 -4 ------- Run | Yrd Mat Mat Min Mat Fac Gar Fac Gar Fac Low Low Fac Was Fac Ext Cet Arc Hub Fac Upp Upp Slots Evolved 12 | . . 2 . 2 2 . . . 2 . . 2 . . . . . . 2 . . Power 1 | . . . . . . . . . . . . 1 . . . . . . . . . Propulsion 2 | . . . . 1 1 . . . . . . . . . . . . . . . . Utility 8 | . . 1 . 1 1 . . . 2 . . 1 . . . . . . 2 . . Weapon 1 | . . 1 . . . . . . . . . . . . . . . . . . . Parts Attached 426 | 7 7 32 1 46 5 18 27 14 100 4 1 17 3 14 35 22 7 23 37 4 2 Power 38 | 1 1 2 . 4 . 1 1 1 10 1 . 2 . 1 4 1 1 4 3 . . Engine 13 | 1 . 1 . 2 . 1 1 1 5 . . 1 . . . . . . . . . Core 14 | . 1 1 . 2 . . . . 3 . . 1 . 1 4 . . 1 . . . Reactor 11 | . . . . . . . . . 2 1 . . . . . 1 1 3 3 . . Propulsion 95 | 2 1 8 . 16 1 4 8 2 25 . . 6 . 1 9 5 . 1 4 1 1 Treads 60 | 2 1 8 . 16 1 4 6 2 8 . . 1 . . 1 4 . 1 4 1 . Leg 21 | . . . . . . . 2 . 11 . . . . . 7 1 . . . . . Wheel 3 | . . . . . . . . . 1 . . 1 . . . . . . . . 1 Hover 7 | . . . . . . . . . 5 . . 2 . . . . . . . . . Flight 4 | . . . . . . . . . . . . 2 . 1 1 . . . . . . Utility 167 | 2 2 10 1 12 1 6 12 4 36 3 1 3 2 10 10 12 3 13 23 1 . Device 85 | 1 1 3 . 4 1 4 7 4 23 3 1 1 2 6 4 4 1 8 7 . . Storage 8 | 1 . 2 1 . . . . . 2 . . . . . 1 . . . . 1 . Processor 11 | . . . . . . 1 5 . 1 . . . . 1 . 2 . . 1 . . Hackware 12 | . . 2 . 1 . . . . 1 . . 1 . 1 3 . . . 3 . . Protection 51 | . 1 3 . 7 . 1 . . 9 . . 1 . 2 2 6 2 5 12 . . Artifact . | . . . . . . . . . . . . . . . . . . . . . . Weapon 126 | 2 3 12 . 14 3 7 6 7 29 . . 6 1 2 12 4 3 5 7 2 1 Energy Gun 44 | 1 . 5 . 5 . 3 5 4 14 . . 4 . . . 1 . . 1 1 . Energy Cannon 19 | . 3 4 . 2 . 2 . . 6 . . . . . . 1 . . 1 . . Ballistic Gun 37 | 1 . 3 . 4 3 1 1 3 1 . . . . . 4 2 3 5 5 . 1 Ballistic Cannon 7 | . . . . 1 . 1 . . 3 . . 2 . . . . . . . . . Launcher 6 | . . . . 2 . . . . 4 . . . . . . . . . . . . Special Weapon 2 | . . . . . . . . . . . . . . . 2 . . . . . . Impact Weapon 2 | . . . . . . . . . 1 . . . . . . . . . . 1 . Slashing Weapon 6 | . . . . . . . . . . . . . . . 6 . . . . . . Piercing Weapon 3 | . . . . . . . . . . . . . 1 2 . . . . . . . Special Melee Weapon . | . . . . . . . . . . . . . . . . . . . . . . Unidentified Prototypes 20 | . . 1 . 1 . . 1 . 2 1 . . 1 . . 6 . 4 3 . . Corrupted Parts 9 | . . . . 4 . . . . . . 1 . . . . 1 1 1 . . 1 System Corruption 39 | . . . . 13 . . . . . . 10 . . . . 2 6 3 . . 5 Parts Lost 145 | . 1 8 . 19 . 4 4 9 45 1 . 12 . . 8 2 . 4 27 . 1 Power 11 | . . 2 . 2 . . . 1 2 . . 3 . . . . . . 1 . . Propulsion 36 | . . 1 . 6 . . 4 2 12 . . 2 . . 2 2 . . 4 . 1 Utility 59 | . . 2 . 8 . 2 . 3 18 . . 4 . . 3 . . 3 16 . . Weapon 39 | . 1 3 . 3 . 2 . 3 13 1 . 3 . . 3 . . 1 6 . . Highest Loss Streak 15 | . 1 6 . 7 . 1 2 3 6 1 . 9 . . 3 2 . 1 15 . 1 To Critical Strikes 1 | . . . . . . . . . 1 . . . . . . . . . . . . Average Slot Usage (%) 89 | . 100 96 100 98 91 98 99 99 97 64 60 61 23 60 90 92 87 85 82 9 26 Engine 2 | . 2 4 . 2 7 7 7 6 2 . . . . . . . . . . . . Core 4 | . 11 4 11 6 . . . . 2 . . . . 1 9 9 4 . . . . Reactor 1 | . . . . . . . . . . 6 6 3 . . . 1 5 11 9 . . Treads 15 | . 28 22 22 27 30 30 25 30 16 . . 3 . . . 13 11 11 9 1 5 Leg 2 | . . . . . . . 4 . 5 . . . . . 8 1 . . . . . Hover 1 | . . . . . . . . . 2 20 20 17 . . . . . . . . . Flight 1 | . . . . . . . . . . . . . 11 10 6 . . . . . . Device 17 | . 1 7 11 12 21 23 14 14 27 20 20 17 3 23 16 11 22 18 10 . . Storage 6 | . 14 11 11 9 7 7 7 7 6 6 6 3 . . . 5 5 5 4 1 5 Processor 5 | . . . . . . 3 15 15 4 . . . . 1 2 4 11 8 7 5 5 Hackware 3 | . . 2 . 3 . . . . . . . 3 5 9 19 10 . . 8 . . Protection 6 | . 12 11 11 10 7 3 . . 5 6 6 1 . 5 4 11 5 9 14 . . Energy Gun 5 | . 1 1 . 3 6 10 18 19 10 4 . 6 . . . 4 . . . 1 5 Energy Cannon 4 | . 19 18 33 14 . 1 . . 6 . . . . . . 1 . . . . . Ballistic Gun 6 | . 6 11 . 7 2 6 3 2 1 . . . . . 1 8 16 17 12 . . Slashing Weapon 1 | . . . . . . . . . . . . . . . 12 1 . . . . . Naked Turns . | . . . . . . . . . . . . . . . . . . . . . . Heaviest Build 116 | 14 17 47 67 73 74 74 74 71 92 69 59 71 18 35 68 99 94 108 116 29 29 Greatest Support 169 | 40 40 43 43 66 80 88 114 104 104 33 33 39 26 35 74 169 160 160 160 70 70 Greatest Overweight (x) 28 | . . 1 1 1 . . 1 . 18 2 1 2 . 2 3 1 28 . 1 . 2 Average Overweight (x) . | . . . 1 . . . . . . 1 1 . . . . . 8 . . . . Largest Inventory Capacity 20 | 8 8 15 20 20 20 20 20 20 20 20 20 20 5 5 15 15 15 15 15 15 15 Average Capacity 14 | 6 8 10 18 20 20 20 20 20 20 20 20 16 5 5 5 15 15 15 14 6 15 Most Carried 20 | 8 8 15 15 20 20 20 20 20 20 16 15 18 3 5 11 15 15 15 15 8 10 Average Carried 13 | 4 7 9 15 17 19 19 19 17 18 13 15 12 3 4 4 14 14 14 12 5 8 Final Capacity 20 | 8 8 15 20 20 20 20 20 20 20 20 20 5 5 5 15 15 15 15 15 15 15 Final Carried 20 | 7 8 15 15 20 20 19 20 19 13 15 15 3 3 5 11 15 15 15 15 8 9 Class Distribution -------------------- 30% | Scavenger-Tank 17% | Scavenger-Gunner 12% | Mutant 11% | Gunner 7% | Hacker-Mutant 6% | Scavenger-Mutant 4% | Tank 4% | Hacker-Gladiator Dominant Class ---------------- Mutant | -10/Materials Tank | -9/Materials Tank | -9/Mines Scavenger-Tank | -8/Materials Scavenger-Gunner | -7/Factory Scavenger-Gunner | -7/Garrison Scavenger-Gunner | -7/Factory Gunner | -7/Garrison Gunner | -6/Factory Scavenger-Mutant | -6/Lower Caves Scavenger-Mutant | -6/Lower Caves Scavenger-Mutant | -5/Factory Scavenger-Mutant | -5/Waste Hacker-Mutant | -5/Factory Hacker-Mutant | -5/Extension Scavenger-Tank | -5/Cetus Scavenger-Tank | -5/Archives Scavenger-Tank | -5/Hub_04(d) Scavenger-Tank | -4/Factory Mutant | -4/Upper Caves Mutant | -4/Upper Caves Resources | -11 -10 -9 -9 -8 -7 -7 -7 -7 -6 -6 -6 -5 -5 -5 -5 -5 -5 -5 -4 -4 -4 ----------- Run | Yrd Mat Mat Min Mat Fac Gar Fac Gar Fac Low Low Fac Was Fac Ext Cet Arc Hub Fac Upp Upp Matter Collected 9465 | 276 299 534 . 923 98 556 396 170 1681 79 . 225 . 209 446 309 341 1140 1695 39 49 Remotely . | . . . . . . . . . . . . . . . . . . . . . . Salvage Created 20784 | 22 1011 1445 . 2307 91 1106 1945 999 5443 . . 177 . 75 491 88 394 1741 3304 . 145 Parts 921 | 3 60 81 . 124 2 50 75 40 212 . . 5 . 7 19 2 27 69 138 . 7 Haulers Intercepted 16 | . 2 4 . 5 . . 2 . 1 . . . . . . . . 1 1 . . Recyclers Shooed 1 | 1 . . . . . . . . . . . . . . . . . . . . . Parts Field Recycled . | . . . . . . . . . . . . . . . . . . . . . . Retrieved Matter . | . . . . . . . . . . . . . . . . . . . . . . Parts Self-Destructed 8 | . . . . . . . . . . . . . . . . . . . . . 8 Prevented 4 | . . . . . . . . . . 2 . . . . . . . . . . 2 Kills | -11 -10 -9 -9 -8 -7 -7 -7 -7 -6 -6 -6 -5 -5 -5 -5 -5 -5 -5 -4 -4 -4 ------- Run | Yrd Mat Mat Min Mat Fac Gar Fac Gar Fac Low Low Fac Was Fac Ext Cet Arc Hub Fac Upp Upp Combat Hostiles Destroyed 352 | . 21 23 . 46 3 26 34 25 93 . . 3 . . 8 1 1 22 40 . 6 Melee 17 | . 1 1 . . . . . . 3 . . . . . 8 1 . . . . 3 Guns 205 | . 6 12 . 14 2 11 33 23 48 . . 3 . . . . 1 21 30 . 1 Cannons 97 | . 14 10 . 27 1 14 . . 27 . . . . . . . . . 4 . . AOE 15 | . . . . 5 . . . . 8 . . . . . . . . 1 1 . . Classes Destroyed 20 | 1 7 3 . 4 . 3 . . 2 . . . . . . . . . . . . Worker 16 | . 1 . . 4 . . 4 . 3 . . . . 1 . . . . 3 . . Builder 13 | . . 1 . 2 . . . . 6 . . . . . . . . 1 3 . . Tunneler 3 | 1 . . . 1 . . . . . . . . . 1 . . . . . . . Hauler 16 | . 2 4 . 5 . . 2 . 1 . . . . . . . . 1 1 . . Recycler 7 | . . 2 . 1 . . 1 . 2 . . . . . . . . . 1 . . Mechanic 6 | . 1 . . . . . 1 . 4 . . . . . . . . . . . . Operator 18 | . 4 2 . 1 . . . . 1 . . . . . . . 9 1 . . . Watcher 16 | . 3 2 . 3 . . 1 . 2 . . . . 1 . 1 . 2 1 . . Swarmer 27 | . 3 . . 6 2 3 . 7 . . . . . . . . . . . . 6 Cutter 2 | . . . . . . 2 . . . . . . . . . . . . . . . Saboteur 2 | . . . . . . . . . 2 . . . . . . . . . . . . Grunt 204 | . 18 16 . 27 . 9 26 13 60 . . 1 . . 5 . . 10 19 . . Brawler 15 | . . . . 2 . 2 1 1 5 . . . . . . . . . 4 . . Duelist 15 | . . . . 3 . . 1 . 5 . . . . . 1 . . . 5 . . Protector 4 | . . . . . . . . . 4 . . . . . . . . . . . . Sentry 39 | . . 7 . 6 1 5 2 3 4 . . . . . 2 . 1 4 4 . . Hunter 13 | . . . . 1 . . . . 3 . . 1 . . . . . 2 6 . . Programmer 22 | . . . . . . 3 4 . 10 . . 1 . . . . . 2 2 . . Heavy 2 | . . . . 1 . . . . . . . . . . . . . 1 . . . Behemoth 3 | . . . . . . 2 . 1 . . . . . . . . . . . . . Cetus Guard 1 | . . . . . . . . . . . . . . . . 1 . . . . . Lightning 3 | . . . . . . . . . . . . . . . . . . 3 . . . Best Kill Streak 14 | 1 3 9 . 10 2 5 11 14 12 . . 1 . 1 3 1 6 5 5 . 3 Combat Bots Only 14 | . 3 5 . 8 2 5 7 14 8 . . 1 . . 3 1 1 5 5 . 4 Max Kills in Single Turn 5 | 1 1 2 . 3 1 1 5 2 4 . . 1 . 1 1 1 1 2 2 . 1 Gunslinging 1 | . . . . . . . . 1 . . . . . . . . . 1 . . . Exploded 3 | . . . . 3 . . . . 3 . . . . . . . . 1 1 . . Melee 1 | . 1 1 . . . . . . 1 . . . . . 1 1 . . . . 1 Uniques/NPCs Destroyed . | . . . . . . . . . . . . . . . . . . . . . . Combat | -11 -10 -9 -9 -8 -7 -7 -7 -7 -6 -6 -6 -5 -5 -5 -5 -5 -5 -5 -4 -4 -4 -------- Run | Yrd Mat Mat Min Mat Fac Gar Fac Gar Fac Low Low Fac Was Fac Ext Cet Arc Hub Fac Upp Upp Hostile Shots Fired 2564 | . 92 114 . 221 48 254 101 161 653 30 . 133 1 6 90 24 4 123 441 . 68 Missed 732 | . 23 25 . 52 13 78 32 54 184 11 . 63 1 3 21 11 2 38 108 . 13 Damage Taken 29095 | . 771 1084 . 2689 293 1851 997 1147 7511 132 . 1498 . 59 1525 459 46 2352 5785 66 830 Core 3720 | . 140 151 . 225 35 191 46 86 722 78 . 525 . 18 192 117 . 35 893 53 213 Absorbed by Shields 1121 | . . . . 175 . . 188 . 641 . . . . . 117 . . . . . . Reduced by Siege Mode 264 | . . . . . . . . . . . . . . . . . . 72 159 . 33 Redirected to Shielding 259 | . 20 5 . . 7 23 . . 43 . . 52 . . . . . . 109 . . Ignored by Resistances 1812 | . . . . . . . . . 303 . . . . . . 7 . 192 1310 . . Regen/Repaired (Parts) 708 | . . . . . . . . . . . . . . 89 619 . . . . . . Core Remaining (%) 47 | 100 44 . 62 59 . . . 48 . . 5 . . . . . . 11 . . . Volleys Fired 1034 | 2 100 74 . 135 8 82 57 46 261 . . 15 . . 10 2 26 74 136 . 6 Largest 3 | 2 2 3 . 3 3 3 3 3 3 . . 3 . . 1 2 3 3 3 . 2 Hottest 270 | 60 120 185 . 180 110 179 240 240 270 . . 207 . . 33 70 205 105 151 . 117 Shots Fired 2471 | 4 193 166 . 321 19 186 174 108 640 . . 26 . . 10 3 77 209 323 . 12 Gun 1775 | 4 99 98 . 134 14 125 174 108 390 . . 19 . . 10 3 75 209 301 . 12 Cannon 667 | . 94 68 . 177 5 61 . . 231 . . 7 . . . . 2 . 22 . . Launcher 29 | . . . . 10 . . . . 19 . . . . . . . . . . . . Special . | . . . . . . . . . . . . . . . . . . . . . . Kinetic 1111 | 2 79 86 . 130 14 55 27 17 94 . . 7 . . 10 3 73 209 299 . 6 Thermal 1287 | 2 114 80 . 164 . 131 147 91 527 . . 19 . . . . 4 . 2 . 6 Explosive 29 | . . . . 10 . . . . 19 . . . . . . . . . . . . Electromagnetic 44 | . . . . 17 5 . . . . . . . . . . . . . 22 . . Robot Hit Streak 39 | 3 11 23 . 14 6 17 21 28 39 . . 23 . . 24 3 7 13 24 . 4 Robot Miss Streak 8 | . 5 4 . 3 2 3 4 3 8 . . . . . 1 . 2 4 5 . 2 Penetration Max 1 | . . . . 1 . . . . 1 . . . . . 1 . . 1 1 . . Secondary Targets 43 | . . 2 . 5 1 1 5 12 5 . . . . . . . . 4 7 . 1 Max Gunslinging Chain 1 | . . 1 . 1 1 1 1 1 1 . . . . . . . . 1 1 . 1 Shots Hit Robots 1724 | 3 115 102 . 208 14 126 128 81 450 . . 20 . 3 39 9 42 130 242 . 12 Core Hits 1023 | 1 40 45 . 113 6 55 107 76 353 . . 8 . 2 16 3 22 54 118 . 4 Critical Kills 31 | . 1 . . . . 1 . . 5 . . . . . . . 2 11 11 . . Critical Parts Destroyed 44 | . 1 1 . 1 . 2 . . 2 . . . . . 1 . 6 10 19 . 1 Critical Strikes 118 | . 2 1 . 1 . 13 4 . 14 . . 1 . . 10 1 8 21 41 . 1 Burn 19 | . . . . . . 8 4 . 6 . . 1 . . . . . . . . . Meltdown 4 | . . . . . . . . . 4 . . . . . . . . . . . . Destroy 70 | . 2 1 . 1 . 3 . . . . . . . . 2 . 8 21 32 . . Blast 3 | . . . . . . 2 . . 1 . . . . . . . . . . . . Corrupt 9 | . . . . . . . . . . . . . . . . . . . 9 . . Smash 4 | . . . . . . . . . 3 . . . . . . . . . . . 1 Sever 9 | . . . . . . . . . . . . . . . 8 1 . . . . . Melee Attacks 82 | . . . . . . . . . 12 . . . . 4 47 7 . . . . 12 Impact 24 | . . . . . . . . . 12 . . . . . . . . . . . 12 Slashing 47 | . . . . . . . . . . . . . . . 40 7 . . . . . Piercing 11 | . . . . . . . . . . . . . . 4 7 . . . . . . Sneak Attacks 4 | . . . . . . . . . . . . . . 2 2 . . . . . . Combat Hostiles 1 | . . . . . . . . . . . . . . . 1 . . . . . . Follow-up Attacks 6 | . . . . . . . . . . . . . . . 4 2 . . . . . Damage Inflicted 50188 | 37 1861 1806 . 6031 356 3281 3614 2280 14824 . . 406 . 324 1663 322 1201 3673 8058 . 451 Guns 29636 | 37 653 951 . 1515 135 1530 3228 2280 7367 . . 373 . . 175 82 1162 3492 6464 . 192 Cannons 13823 | . 1200 834 . 3169 221 1751 . . 5204 . . 33 . . . . 39 . 1372 . . Explosions 4068 | . . . . 1334 . . 378 . 1960 . . . . . . . . 181 215 . . Melee 2588 | . . . . . . . . . 277 . . . . 324 1488 240 . . . . 259 Ramming 73 | . 8 21 . 13 . . 8 . 16 . . . . . . . . . 7 . . Kinetic 18497 | 15 561 826 . 1938 294 1435 389 115 1556 . . 33 . . 175 82 1127 3492 6407 . 52 Thermal 23881 | 22 1292 959 . 2566 . 1846 3217 2165 11015 . . 373 . . . . 74 . 212 . 140 Explosive 3294 | . . . . 1334 . . . . 1960 . . . . . . . . . . . . Electromagnetic 1855 | . . . . 180 62 . . . . . . . . . . . . 181 1432 . . Impact 536 | . . . . . . . . . 277 . . . . . . . . . . . 259 Slashing 1424 | . . . . . . . . . . . . . . . 1184 240 . . . . . Piercing 628 | . . . . . . . . . . . . . . 324 304 . . . . . . Highest Corruption 18 | . 2 . . 13 . 2 4 . 5 . 10 6 11 11 2 5 6 7 13 13 18 Average Corruption 3 | . 1 . . 12 . 1 2 . 3 . 10 1 9 5 1 4 4 3 2 13 13 Corruption Purged 36 | . . . . . . . 4 . 5 . . . . 10 . . 7 10 . . . Corruption Blocked . | . . . . . . . . . . . . . . . . . . . . . . Effects 276 | . 4 . . 6 . 5 29 . 97 . . 3 1 17 27 20 9 22 7 10 19 Message Errors 69 | . 2 . . 2 . . 9 . 20 . . 2 . 3 10 6 1 5 1 4 4 Matter Fused 70 | . . . . 2 . 1 5 . 24 . . . . 4 6 10 3 5 1 2 7 Heat Flow Errors 22 | . . . . . . . 2 . 8 . . . . 1 4 1 2 3 . . 1 Energy Discharges 28 | . . . . 1 . . 5 . 11 . . . . 3 3 3 . . . 1 1 Parts Rejected 5 | . . . . . . 1 1 . . . . . . . . . . 3 . . . Data Loss (minor) 24 | . 1 . . . . 3 1 . 11 . . 1 1 3 1 . 1 . . . 1 Data Loss (major) 21 | . . . . . . . 1 . 6 . . . . 3 3 . 1 1 1 2 3 Misfires 14 | . . . . 1 . . 4 . 6 . . . . . . . . 1 . . 2 Alerts 10 | . 1 . . . . . . . 5 . . . . . . . . 2 1 1 . Misdirections 3 | . . . . . . . . . . . . . . . . . . . 3 . . Weapon Failures 10 | . . . . . . . 1 . 6 . . . . . . . 1 2 . . . Overload Shots . | . . . . . . . . . . . . . . . . . . . . . . Overflow Damage 716 | . 6 . . 120 . 33 53 . 294 . . . . 46 32 . . . 40 . 92 Projectiles 304 | . 6 . . 63 . 33 . . 162 . . . . . . . . . 40 . . Explosions 175 | . . . . 57 . . 53 . 65 . . . . . . . . . . . . Melee 237 | . . . . . . . . . 67 . . . . 46 32 . . . . . 92 Knockbacks 17 | . . 1 . 2 . 2 . . 12 . . . . . . . . . . . . Impact 3 | . . 1 . . . . . . 2 . . . . . . . . . . . . Kinetic 13 | . . . . 2 . 2 . . 9 . . . . . . . . . . . . Secondary 1 | . . . . . . . . . 1 . . . . . . . . . . . . Self-Inflicted Damage 400 | . . . . . . . 87 . 63 . . . . . . . . 195 55 . . Shots 5 | . . . . . . . 1 . 1 . . . . . . . . 2 1 . . Rammed 17 | . 1 5 . 3 . . 1 . 3 . . . . . . . . . 4 . . Targets Rammed 21 | . 3 6 . 3 . . 1 . 4 . . . . . . . . . 4 . . Kicked . | . . . . . . . . . . . . . . . . . . . . . . Crushed 4 | . 2 1 . . . . . . 1 . . . . . . . . . . . . Highest Temperature 466 | . 359 366 . 347 98 318 365 234 466 . . 288 . 192 274 268 278 307 406 284 67 Average Temperature 110 | . 110 107 . 101 48 103 122 91 112 . . 173 . 103 78 120 114 101 124 155 26 Received Heat Transfer 8970 | . 381 534 . 1132 . 733 376 384 3061 . . 195 . . 464 75 . 333 1302 . . Effects 37 | . 3 7 . . . 5 3 . 12 . . . . . . . . 5 2 . . Shutdowns 5 | . 1 1 . . . . . . 1 . . . . . . . . . 2 . . Energy Bleed 11 | . 1 3 . . . 1 2 . 2 . . . . . . . . 2 . . . Interference 16 | . 1 2 . . . 4 . . 6 . . . . . . . . 3 . . . Matter Decay 1 | . . . . . . . . . 1 . . . . . . . . . . . . Short Circuit 3 | . . . . . . . 1 . 2 . . . . . . . . . . . . Damage (minor) 1 | . . 1 . . . . . . . . . . . . . . . . . . . Siege Activations 8 | . . . . . . . . . . . . . . . . . . 3 4 . 1 Total Turns 202 | . . . . . . . . . . . . . . . . . . 86 108 . 8 Longest Duration 53 | . . . . . . . . . . . . . . . . . . 53 53 . 8 Robots Corrupted 6 | . . . . . . . . . . . . . . . . . . . 6 . . Combat Hostiles 5 | . . . . . . . . . . . . . . . . . . . 5 . . Parts Fried 17 | . . . . . . . . . 1 . . . . . . . . . 14 . 2 Impact Corruptions 7 | . . . . . . . . . 3 . . . . . . . . . . . 4 Robots Melted 9 | . . . . . . 1 1 2 5 . . . . . . . . . . . . Combat Hostiles 9 | . . . . . . 1 1 2 5 . . . . . . . . . . . . Parts Melted 89 | . 2 2 . 5 . 8 15 12 42 . . 3 . . . . . . . . . Heat Transferred 42435 | 50 2716 1951 . 3996 . 3976 6376 4521 17713 . . 777 . . . . 37 . 137 . 185 Parts Sabotaged 14 | . . . . . . . . . 8 . . . . . . . . . 6 . . Parts Stolen . | . . . . . . . . . . . . . . . . . . . . . . Parts Stripped . | . . . . . . . . . . . . . . . . . . . . . . Power Chain Reactions 1 | . . . . . . . . . . . . . . . . . . . 1 . . Alert | -11 -10 -9 -9 -8 -7 -7 -7 -7 -6 -6 -6 -5 -5 -5 -5 -5 -5 -5 -4 -4 -4 ------- Run | Yrd Mat Mat Min Mat Fac Gar Fac Gar Fac Low Low Fac Was Fac Ext Cet Arc Hub Fac Upp Upp Peak Influence 2324 | 5 214 393 133 1032 510 1277 1088 1395 2324 . . 789 239 167 669 604 555 1411 1489 . . Initial 761 | . 3 62 133 51 373 357 669 761 732 . . 633 239 167 . 374 200 . 690 . . Average 590 | 2 117 269 133 574 412 846 609 1178 1326 . . 650 239 53 55 400 174 555 954 . . Maximum Alert Level 5 | . 1 1 . 3 2 4 3 4 5 . . 3 1 . 2 2 2 4 4 . . Low Security (%) 32 | 100 97 20 100 14 . . . . . . . . . 100 91 . 54 24 . . . Level 1 12 | . 2 79 . 9 59 7 7 . . . . . 100 . 5 25 31 20 . . . Level 2 19 | . . . . 38 40 27 68 . 7 . . 84 . . 3 74 13 23 15 . . Level 3 17 | . . . . 37 . 39 24 24 31 . . 15 . . . . . 16 61 . . Level 4 11 | . . . . . . 24 . 75 28 . . . . . . . . 14 23 . . Level 5 6 | . . . . . . . . . 33 . . . . . . . . . . . . High Security . | . . . . . . . . . . . . . . . . . . . . . . Max Security . | . . . . . . . . . . . . . . . . . . . . . . Squads Dispatched 96 | . 7 3 . 11 1 . 11 . 30 . . 4 . 4 . . . 9 16 . . Investigation 23 | . 3 2 . 1 . . 3 . 6 . . 1 . 2 . . . 4 1 . . Extermination 16 | . . . . . . . 4 . 8 . . 1 . 1 . . . 1 1 . . Reinforcement 23 | . 4 1 . 5 . . 1 . 2 . . . . 1 . . . 4 5 . . Assault 25 | . . . . 2 . . . . 14 . . 2 . . . . . . 7 . . Garrison 9 | . . . . 3 1 . 3 . . . . . . . . . . . 2 . . Intercept . | . . . . . . . . . . . . . . . . . . . . . . Searches Triggered . | . . . . . . . . . . . . . . . . . . . . . . Construction Impeded 5 | . . . . 2 . . . . . . . . . . . . . . 3 . . Haulers Reinforced 4 | . . . . . . . . . 1 . . . . . . . . 1 2 . . Active Scanning Responses 1 | . . . . . . . . . . . . 1 . . . . . . . . . Cargo Convoy Interrupts 1 | . . . . . . . . . . . . 1 . . . . . . . . . Stealth | -11 -10 -9 -9 -8 -7 -7 -7 -7 -6 -6 -6 -5 -5 -5 -5 -5 -5 -5 -4 -4 -4 --------- Run | Yrd Mat Mat Min Mat Fac Gar Fac Gar Fac Low Low Fac Was Fac Ext Cet Arc Hub Fac Upp Upp Distress Signals 26 | . 1 2 . 10 . . . . 3 . . . . 2 3 2 . 3 . . . Communications Jammed . | . . . . . . . . . . . . . . . . . . . . . . Distress Signals . | . . . . . . . . . . . . . . . . . . . . . . Times Spotted 640 | . 34 31 . 73 4 28 41 27 161 1 . 40 4 6 37 15 14 34 80 . 10 Peak Tracking Total 26 | . 3 6 . 10 3 5 4 6 9 1 . 26 4 4 10 5 2 6 17 . 5 Tactical Retreats 42 | . 1 2 . 7 1 2 1 2 10 1 . 2 . 1 2 . . 1 8 . 1 Traps | -11 -10 -9 -9 -8 -7 -7 -7 -7 -6 -6 -6 -5 -5 -5 -5 -5 -5 -5 -4 -4 -4 ------- Run | Yrd Mat Mat Min Mat Fac Gar Fac Gar Fac Low Low Fac Was Fac Ext Cet Arc Hub Fac Upp Upp Traps Triggered 23 | . 1 1 . 1 . 3 4 4 2 . . 1 . . 3 . . 2 . 1 . Indirectly . | . . . . . . . . . . . . . . . . . . . . . . Trap Hack Attempts . | . . . . . . . . . . . . . . . . . . . . . . Triggered . | . . . . . . . . . . . . . . . . . . . . . . Disarmed . | . . . . . . . . . . . . . . . . . . . . . . Reprogrammed . | . . . . . . . . . . . . . . . . . . . . . . Reused . | . . . . . . . . . . . . . . . . . . . . . . Traps Extracted . | . . . . . . . . . . . . . . . . . . . . . . Installed . | . . . . . . . . . . . . . . . . . . . . . . Triggered 3 | . . . . . . . . . . 2 . . . . . . . . 1 . . Objects Rigged 2 | . . . . . . . . . . . . . . . . . . . 2 . . Exploded 1 | . . . . . . . . . . . . . . . . . . . 1 . . Machines | -11 -10 -9 -9 -8 -7 -7 -7 -7 -6 -6 -6 -5 -5 -5 -5 -5 -5 -5 -4 -4 -4 ---------- Run | Yrd Mat Mat Min Mat Fac Gar Fac Gar Fac Low Low Fac Was Fac Ext Cet Arc Hub Fac Upp Upp Machines Disabled 68 | . 1 . . 5 . 4 13 2 6 . . . . . 2 2 3 24 6 . . Max in Single Turn 12 | . 1 . . 1 . 1 12 1 1 . . . . . 1 . 1 8 2 . . Garrison Access 3 | . . . . 1 . . . . . . . . . . . . . . 2 . . Garrison Relay 6 | . . . . . . 4 . 2 . . . . . . . . . . . . . Network Hub 3 | . . . . . . . . . . . . . . . . . . 3 . . . Machines Repaired . | . . . . . . . . . . . . . . . . . . . . . . Machines Dismantled 2 | . . . . . . . . . . . . . . . 2 . . . . . . Machines Sabotaged 1 | . . . . . . . . . . . . . . . . . . 1 . . . Overloaded Fab Kills 2 | . . . . . . . . . . . . . . . . . . . 2 . . Hacking | -11 -10 -9 -9 -8 -7 -7 -7 -7 -6 -6 -6 -5 -5 -5 -5 -5 -5 -5 -4 -4 -4 --------- Run | Yrd Mat Mat Min Mat Fac Gar Fac Gar Fac Low Low Fac Was Fac Ext Cet Arc Hub Fac Upp Upp Machines Accessed 76 | . 7 3 . 5 2 . 11 2 6 1 . 2 . 10 11 3 . 4 9 . . Terminals 49 | . 5 3 . 5 1 . 3 2 2 . . 1 . 6 10 3 . 4 4 . . Fabricators 7 | . . . . . . . 2 . 1 . . . . 2 . . . . 2 . . Repair Stations 6 | . . . . . . . 1 . 1 . . 1 . 2 1 . . . . . . Recycling Units 7 | . 2 . . . . . 3 . 1 . . . . . . . . . 1 . . Scanalyzers 2 | . . . . . . . 1 . 1 . . . . . . . . . . . . Garrison Access 4 | . . . . . 1 . 1 . . . . . . . . . . . 2 . . Total Hacks 289 | . 22 8 . 12 3 . 30 4 16 1 . 4 . 33 76 9 . 11 60 . . Successful 120 | . 6 6 . 6 3 . 7 2 6 1 . 2 . 18 33 5 . 2 23 . . Failed 169 | . 16 2 . 6 . . 23 2 10 . . 2 . 15 43 4 . 9 37 . . Catastrophic 41 | . 1 1 . 1 . . 5 . 3 . . 1 . 7 8 . . 3 11 . . Database Lockouts . | . . . . . . . . . . . . . . . . . . . . . . Manual 120 | . 22 5 . 8 2 . 13 . 6 . . 2 . 10 11 4 . 3 34 . . Terminals 202 | . 20 8 . 12 2 . 12 4 4 . . 2 . 23 55 9 . 11 40 . . Fabricators 29 | . . . . . . . 5 . 4 . . . . 5 . . . . 15 . . Repair Stations 35 | . . . . . . . 3 . 4 . . 2 . 5 21 . . . . . . Recycling Units 14 | . 2 . . . . . 7 . 2 . . . . . . . . . 3 . . Scanalyzers 4 | . . . . . . . 2 . 2 . . . . . . . . . . . . Garrison Access 4 | . . . . . 1 . 1 . . . . . . . . . . . 2 . . Terminal Hacks 57 | . 2 6 . 4 . . 3 2 1 1 . . . 9 16 5 . . 8 . . Record 5 | . . . . . . . . . . . . . . . . 4 . . 1 . . Part Schematic 4 | . . . . . . . . . . . . . . . 4 . . . . . . Robot Analysis 11 | . 2 3 . 2 . . 2 . . . . . . . 2 . . . . . . Prototype ID Bank 1 | . . . . . . . . . . . . . . 1 . . . . . . . Open Door 8 | . . . . . . . . . . 1 . . . 1 5 1 . . . . . Level Access Points 1 | . . 1 . . . . . . . . . . . . . . . . . . . Branch Access Points 1 | . . . . . . . . . . . . . . 1 . . . . . . . Emergency Access Points 1 | . . . . . . . . 1 . . . . . . . . . . . . . Terminal Index 2 | . . 1 . . . . . . . . . . . . . . . . 1 . . Scanalyzer Index 1 | . . . . . . . . . . . . . . . . . . . 1 . . Garrison Index 1 | . . . . . . . . . . . . . . . . . . . 1 . . Unreport Threat 10 | . . . . 2 . . 1 . 1 . . . . 1 3 . . . 2 . . Maintenance Status 2 | . . . . . . . . . . . . . . 1 . . . . 1 . . Security Status 1 | . . . . . . . . . . . . . . . 1 . . . . . . Patrol Status 1 | . . 1 . . . . . . . . . . . . . . . . . . . Hauler Manifests 2 | . . . . . . . . . . . . . . 1 1 . . . . . . Registered Components 1 | . . . . . . . . . . . . . . 1 . . . . . . . Registered Prototypes 2 | . . . . . . . . . . . . . . 1 . . . . 1 . . Zone Layout 1 | . . . . . . . . . . . . . . 1 . . . . . . . Garrison Registry 1 | . . . . . . . . 1 . . . . . . . . . . . . . Fabricator Hacks 5 | . . . . . . . 1 . 1 . . . . 1 . . . . 2 . . Network Status 3 | . . . . . . . 1 . 1 . . . . . . . . . 1 . . Load Schematic 1 | . . . . . . . . . . . . . . . . . . . 1 . . Build 1 | . . . . . . . . . . . . . . 1 . . . . . . . Repair Station Hacks 24 | . . . . . . . . . 2 . . 2 . 3 17 . . . . . . Scan Component 14 | . . . . . . . . . 2 . . 1 . 2 9 . . . . . . Repair 10 | . . . . . . . . . . . . 1 . 1 8 . . . . . . Recycling Unit Hacks . | . . . . . . . . . . . . . . . . . . . . . . Scanalyzer 1 | . . . . . . . . . 1 . . . . . . . . . . . . Insert Component 1 | . . . . . . . . . 1 . . . . . . . . . . . . Garrison Access Hacks 4 | . . . . . 1 . 1 . . . . . . . . . . . 2 . . Unlock Access 2 | . . . . . 1 . 1 . . . . . . . . . . . . . . Seal Access 2 | . . . . . . . . . . . . . . . . . . . 2 . . Unauthorized Hacks 29 | . 4 . . 2 2 . 2 . 1 . . . . 5 . . . 2 11 . . Terminals 18 | . 2 . . 2 2 . . . . . . . . 4 . . . 2 6 . . Track 4 | . . . . . 1 . . . . . . . . 2 . . . . 1 . . Assimilate 2 | . . . . . . . . . . . . . . 1 . . . . 1 . . Botnet 7 | . 2 . . 2 1 . . . . . . . . 1 . . . . 1 . . Detonate 1 | . . . . . . . . . . . . . . . . . . . 1 . . Disrupt 1 | . . . . . . . . . . . . . . . . . . . 1 . . Operators 1 | . . . . . . . . . . . . . . . . . . . 1 . . Sabotage 2 | . . . . . . . . . . . . . . . . . . 2 . . . Fabricators 5 | . . . . . . . . . . . . . . 1 . . . . 4 . . Report 2 | . . . . . . . . . . . . . . 1 . . . . 1 . . Fabnet 2 | . . . . . . . . . . . . . . . . . . . 2 . . Overload 1 | . . . . . . . . . . . . . . . . . . . 1 . . Repair Stations . | . . . . . . . . . . . . . . . . . . . . . . Recycling Units 6 | . 2 . . . . . 2 . 1 . . . . . . . . . 1 . . Reject 2 | . . . . . . . 1 . 1 . . . . . . . . . . . . Mask 2 | . . . . . . . 1 . . . . . . . . . . . 1 . . Tunnel 2 | . 2 . . . . . . . . . . . . . . . . . . . . Scanalyzers . | . . . . . . . . . . . . . . . . . . . . . . Garrison Access . | . . . . . . . . . . . . . . . . . . . . . . Data Cores Recovered 4 | . . 1 . 1 . . . . 1 . . . . . . . . 1 . . . Used 3 | . . 1 . 1 . . . . . . . . . . . . . 1 . . . Hacking Detections 60 | . 5 3 . 5 2 . 10 2 6 . . 1 . 7 7 3 . 3 6 . . Full Trace Events 14 | . 4 1 . . . . 2 . 4 . . . . 2 . . . 1 . . . Feedback Events 2 | . 1 . . . . . . . 1 . . . . . . . . . . . . Corruption 2 | . 1 . . . . . . . 1 . . . . . . . . . . . . Feedback Blocked . | . . . . . . . . . . . . . . . . . . . . . . Robot Schematics Acquired . | . . . . . . . . . . . . . . . . . . . . . . Robots Built . | . . . . . . . . . . . . . . . . . . . . . . Authchips . | . . . . . . . . . . . . . . . . . . . . . . Time 56 | . . . . . . . . . . . . . . 56 . . . . . . . Total Robot Build Rating . | . . . . . . . . . . . . . . . . . . . . . . Part Schematics Acquired 4 | . . . . . . . . . . . . . . . 4 . . . . . . Parts Built . | . . . . . . . . . . . . . . . . . . . . . . Authchips . | . . . . . . . . . . . . . . . . . . . . . . Time . | . . . . . . . . . . . . . . . . . . . . . . Total Part Build Rating . | . . . . . . . . . . . . . . . . . . . . . . Parts Repaired 9 | . . . . . . . . . . . . . . 1 8 . . . . . . Time 616 | . . . . . . . . . . . . 100 . 78 438 . . . . . . Parts Recycled . | . . . . . . . . . . . . . . . . . . . . . . Recycled Matter . | . . . . . . . . . . . . . . . . . . . . . . Retrieved Matter . | . . . . . . . . . . . . . . . . . . . . . . Retrieved Components . | . . . . . . . . . . . . . . . . . . . . . . Parts Scanalyzed . | . . . . . . . . . . . . . . . . . . . . . . Part Schematics Acquired . | . . . . . . . . . . . . . . . . . . . . . . Parts Damaged . | . . . . . . . . . . . . . . . . . . . . . . Bothacking | -11 -10 -9 -9 -8 -7 -7 -7 -7 -6 -6 -6 -5 -5 -5 -5 -5 -5 -5 -4 -4 -4 ------------ Run | Yrd Mat Mat Min Mat Fac Gar Fac Gar Fac Low Low Fac Was Fac Ext Cet Arc Hub Fac Upp Upp Used RIF Installer 3 | . . . . . . 2 . 1 . . . . . . . . . . . . . Watcher Feeds 1 | . . . . . . . . 1 . . . . . . . . . . . . . Alert ID Control 1 | . . . . . . 1 . . . . . . . . . . . . . . . Robots Hacked . | . . . . . . . . . . . . . . . . . . . . . . Non-combat . | . . . . . . . . . . . . . . . . . . . . . . Combat . | . . . . . . . . . . . . . . . . . . . . . . Robot Hacks Applied . | . . . . . . . . . . . . . . . . . . . . . . Relay Couplers Released 29 | . . . . 2 . 19 . 8 . . . . . . . . . . . . . Machine Destruction 25 | . . . . 2 . 15 . 8 . . . . . . . . . . . . . Programmers 4 | . . . . . . 4 . . . . . . . . . . . . . . . Fabnet Peak Effective % . | . . . . . . . . . . . . . . . . . . . . . . Robots Rewired 15 | . . . . . . . . . . . . . . . 15 . . . . . . Allies Hacked . | . . . . . . . . . . . . . . . . . . . . . . Hacks Repelled . | . . . . . . . . . . . . . . . . . . . . . . Allies | -11 -10 -9 -9 -8 -7 -7 -7 -7 -6 -6 -6 -5 -5 -5 -5 -5 -5 -5 -4 -4 -4 -------- Run | Yrd Mat Mat Min Mat Fac Gar Fac Gar Fac Low Low Fac Was Fac Ext Cet Arc Hub Fac Upp Upp Total Allies 31 | . . . . . . . . . . . . . . 1 24 5 . . 1 . . Largest Group 19 | . . . . . . . . . . . . . . 1 19 12 7 6 1 1 1 Highest-Rated Group 792 | . . . . . . . . . . . . . . 10 677 792 586 441 26 22 22 Highest-Rated Ally 159 | . . . . . . . . . . . . . . 10 159 145 145 96 26 22 22 Total Orders 12 | . . . . . . . . . . . . . . 2 6 . 2 . . . 2 STAY 6 | . . . . . . . . . . . . . . 1 3 . 1 . . . 1 FOLLOW 6 | . . . . . . . . . . . . . . 1 3 . 1 . . . 1 Ally Attacks 336 | . . . . . . . . . . . . . . . 202 70 16 48 . . . Total Damage 8556 | . . . . . . . . . . . . . . . 4020 2450 513 1573 . . . Kills 61 | . . . . . . . . . . . . . . . 34 16 3 8 . . . Allies Corrupted . | . . . . . . . . . . . . . . . . . . . . . . Allies Melted 1 | . . . . . . . . . . . . . . . . . . 1 . . . Intel | -11 -10 -9 -9 -8 -7 -7 -7 -7 -6 -6 -6 -5 -5 -5 -5 -5 -5 -5 -4 -4 -4 ------- Run | Yrd Mat Mat Min Mat Fac Gar Fac Gar Fac Low Low Fac Was Fac Ext Cet Arc Hub Fac Upp Upp Robot Analysis Total 11 | . 2 3 . 2 . . 2 . . . . . . . 2 . . . . . . Derelict Logs Recovered 6 | . . . 2 . . . . . . 1 1 . . . . . . . . 2 . Drone Launches . | . . . . . . . . . . . . . . . . . . . . . . Drone Recoveries . | . . . . . . . . . . . . . . . . . . . . . . Exploration | -11 -10 -9 -9 -8 -7 -7 -7 -7 -6 -6 -6 -5 -5 -5 -5 -5 -5 -5 -4 -4 -4 ------------- Run | Yrd Mat Mat Min Mat Fac Gar Fac Gar Fac Low Low Fac Was Fac Ext Cet Arc Hub Fac Upp Upp Turns Passed 26972 | 89 2143 1487 112 1377 206 1293 2170 798 5109 743 68 542 41 805 3231 854 2636 1199 1383 245 441 Spaces Moved 11720 | 50 1051 644 47 392 101 632 956 349 1759 653 66 405 98 1104 1010 410 307 543 621 398 124 Core 586 | 13 . . . . . . . . 1 . . . . 3 1 . 97 . 100 371 . Treads 7083 | 37 1051 644 47 392 101 632 956 349 1103 . . . . . . 379 210 543 521 27 91 Legs 1207 | . . . . . . . . . 303 . . . . . 873 31 . . . . . Wheels 71 | . . . . . . . . . 38 . . . . . . . . . . . 33 Hover 1353 | . . . . . . . . . 314 653 66 320 . . . . . . . . . Flight 1420 | . . . . . . . . . . . . 85 98 1101 136 . . . . . . Fastest Speed 37 | 50 160 160 240 160 167 162 160 162 98 102 102 37 37 37 37 120 160 160 50 50 110 Average Speed 151 | 131 160 175 240 210 167 163 172 162 168 102 102 88 37 37 141 158 567 160 143 57 146 Slowest Speed 1450 | 160 160 240 240 246 167 167 240 162 950 142 102 162 37 150 260 190 1450 160 240 160 160 Overloaded Moves . | . . . . . . . . . . . . . . . . . . . . . . Propulsion Burnouts . | . . . . . . . . . . . . . . . . . . . . . . Robots Hopped 13 | . . . . . . . . . . 1 . 2 6 4 . . . . . . . Cave-ins Triggered . | . . . . . . . . . . . . . . . . . . . . . . Exploration Rate (%) 43 | 4 94 42 16 38 5 65 26 50 15 80 17 13 80 29 84 83 85 39 16 63 11 Regions Visited 21 Branch Regions 9 Pre-discovered Areas 4 | . 2 . 1 . . . . . . . . . . . . . . . . 1 . Known Exits Taken 12 | . . . 1 . 1 . 1 . 1 1 1 . . 1 . 1 1 1 1 1 . Unknown Exits Taken 5 | 1 1 1 . 1 . . . . . . . . . . 1 . . . . . . Scrap Searched 2 | . . . 1 . . . . . . . . . . . . . . . . 1 . Spaces Dug 10 | . . . . . . . . . . . . 3 . . 1 . . 2 4 . . Terrain Destroyed 753 | . . 3 . 54 1 5 26 4 126 . . 3 . . 1 . 30 397 102 . 1 Melee 1 | . . . . . . . . . . . . . . . 1 . . . . . . Projectile 248 | . . 3 . 24 1 5 . 3 46 . . 3 . . . . 30 64 68 . 1 AOE 501 | . . . . 30 . . 26 . 80 . . . . . . . . 333 32 . . Terrain Rammed . | . . . . . . . . . . . . . . . . . . . . . . Walls Destroyed . | . . . . . . . . . . . . . . . . . . . . . . Machines Disabled . | . . . . . . . . . . . . . . . . . . . . . . Actions | -11 -10 -9 -9 -8 -7 -7 -7 -7 -6 -6 -6 -5 -5 -5 -5 -5 -5 -5 -4 -4 -4 --------- Run | Yrd Mat Mat Min Mat Fac Gar Fac Gar Fac Low Low Fac Was Fac Ext Cet Arc Hub Fac Upp Upp Total 18869 | 66 1323 856 48 674 126 793 1341 477 3446 727 66 563 95 1483 2706 610 1142 710 853 412 352 Wait 4913 | . 133 61 . 58 9 21 243 58 1204 65 . 116 . 350 1393 122 792 48 26 8 206 Move 11679 | 49 1050 643 46 391 101 631 956 348 1758 650 65 401 88 1095 1009 409 306 542 620 397 124 Hop 10 | . . . . . . . . . . 1 . 2 3 4 . . . . . . . Pick Up 280 | 8 14 19 . 26 2 22 25 10 65 3 . 4 . 9 13 22 5 10 18 3 2 Fast Attach 134 | 6 3 12 . 5 1 2 12 . 21 . . 7 3 6 22 7 1 10 11 4 1 Attach 148 | 1 1 4 . 21 3 8 4 10 43 3 . 7 . 6 5 2 2 6 21 . 1 Detach 16 | . . . . 2 . . . . 1 4 . 3 . 3 1 . . . 2 . . Swap 144 | . 3 16 1 20 1 8 11 4 36 1 1 3 . 2 8 13 4 7 5 . . Drop 218 | . 16 21 1 13 1 19 32 1 41 . . 5 1 4 6 28 6 13 10 . . Fire 1034 | 2 100 74 . 135 8 82 57 46 261 . . 15 . . 10 2 26 74 136 . 6 Melee 74 | . . . . . . . . . 12 . . . . 4 41 5 . . . . 12 Ram 1 | . . . . . . . . . . . . . . . . . . . 1 . . Kick . | . . . . . . . . . . . . . . . . . . . . . . Crush 20 | . 3 6 . 3 . . 1 . 4 . . . . . . . . . 3 . . Escape Stasis 10 | . . . . . . . . . . . . . . . 10 . . . . . . Rewire 172 | . . . . . . . . . . . . . . . 172 . . . . . . Trap . | . . . . . . . . . . . . . . . . . . . . . . Miscellaneous 16 | . . . . . . . . . . . . . . . 16 . . . . . . Route ------- -11/Scrapyard -10/Materials (discovered 4 exits: *Mat x3 / [*Min]) -9/Materials (discovered 4 exits: *Mat x3 / [*Min]) -9/Mines -8/Materials -7/Factory -7/Garrison (discovered 2 exits: *Fac x2) -7/Factory (discovered 3 exits: [*Sto] / [*Low] / Gar) -7/Garrison (discovered 3 exits: *Fac x3) -6/Factory (discovered 2 exits: *Fac / *Low) -6/Lower Caves -6/Lower Caves -5/Factory -5/Waste -5/Factory (discovered 5 exits: *Fac / Upp x2 / *Ext x2) -5/Extension (discovered 3 exits: *Fac x2 / *Cet) -5/Cetus (discovered 2 exits: *Fac / *Arc) -5/Archives (discovered 2 exits: *Fac / *Hub) -5/Hub_04(d) -4/Factory -4/Upper Caves -4/Upper Caves History --------- Turn | Location | Event 7 | -11/Scrapyard | Discovered new exit (range 16) 90 | -11/Scrapyard | Entered Materials 243 | -10/Materials | Discovered new exit (range 12) 305 | -10/Materials | Build established: Mutant 779 | -10/Materials | Discovered new exit (range 10) 946 | -10/Materials | Discovered new exit (range 11) 960 | -10/Materials | Discovered new exit (range 15) 1145 | -10/Materials | Core integrity fell below 50% 2233 | -10/Materials | Entered another Materials area 2233 | -9/Materials | Evolved 2 slots: Utility x1, Weapon x1 2670 | -9/Materials | Discovered new exit (range 4) 2756 | -9/Materials | Discovered new exit (range 14) 2790 | -9/Materials | Identified exit to Materials 2943 | -9/Materials | Build established: Scavenger-Tank 3216 | -9/Materials | Lost 6 parts (1p2u3w) 3568 | -9/Materials | Build established: Tank 3720 | -9/Materials | Entered Mines 3752 | -9/Mines | Discovered exit to Materials (range 12) 3801 | -9/Mines | Learned Materials terminal intel 3820 | -9/Mines | Learned location of Zion (-6) 3832 | -9/Mines | Entered Materials 3832 | -8/Materials | Evolved 2 slots: Propulsion x1, Utility x1 3833 | -8/Materials | Loaded intel: 12 terminal locations 4026 | -8/Materials | Garrison activated, responded to threat 4087 | -8/Materials | Destroyed 8 combat bots 4565 | -8/Materials | Destroyed 7 combat bots 4632 | -8/Materials | First assault squad dispatched 4814 | -8/Materials | Build established: Scavenger-Tank 4824 | -8/Materials | Lost 6 parts (1p2n3u) 5013 | -8/Materials | Discovered new exit (range 16) 5025 | -8/Materials | Lost 7 parts (3n2u2w) 5073 | -8/Materials | System corruption reached 10% 5080 | -8/Materials | Found Prototype Device 5209 | -8/Materials | Entered Factory 5209 | -7/Factory | Evolved 2 slots: Propulsion x1, Utility x1 5343 | -7/Factory | Garrison activated, responded to threat 5346 | -7/Factory | Build established: Scavenger-Gunner 5415 | -7/Factory | Identified exit to Garrison 5415 | -7/Factory | Entered Garrison 5477 | -7/Garrison | Triggered checkpoint 5671 | -7/Garrison | Triggered checkpoint 5720 | -7/Garrison | Garrison Relay disabled 5796 | -7/Garrison | Spotted B-75 Beast 5800 | -7/Garrison | Spotted B-75 Beast 5860 | -7/Garrison | Destroyed B-75 Beast 5896 | -7/Garrison | Destroyed B-75 Beast 5961 | -7/Garrison | Triggered checkpoint 6023 | -7/Garrison | Triggered checkpoint 6057 | -7/Garrison | Garrison Relay disabled 6202 | -7/Garrison | Discovered new exit (range 8) 6279 | -7/Garrison | Triggered checkpoint 6332 | -7/Garrison | Discovered new exit (range 9) 6388 | -7/Garrison | Garrison Relay disabled 6391 | -7/Garrison | Triggered checkpoint 6502 | -7/Garrison | Installed Relay Interface Framework 6627 | -7/Garrison | Expanded RIF knowledge: Alert ID Control 6708 | -7/Garrison | Entered Factory 7298 | -7/Factory | Discovered new exit (range 6) 7688 | -7/Factory | Discovered new exit (range 4) 8527 | -7/Factory | Build established: Gunner 8664 | -7/Factory | Garrison activated, responded to threat 8859 | -7/Factory | Destroyed 7 combat bots 8878 | -7/Factory | Identified exit to Garrison 8878 | -7/Factory | Entered Garrison 8913 | -7/Garrison | Triggered checkpoint 8947 | -7/Garrison | Garrison Relay disabled 9094 | -7/Garrison | Triggered checkpoint 9104 | -7/Garrison | Destroyed 14 combat bots 9134 | -7/Garrison | Spotted B-75 Beast 9137 | -7/Garrison | Discovered new exit (range 14) 9238 | -7/Garrison | Triggered checkpoint 9263 | -7/Garrison | Garrison Relay disabled 9319 | -7/Garrison | Expanded RIF knowledge: Watcher Feeds 9407 | -7/Garrison | Destroyed B-75 Beast 9409 | -7/Garrison | Lost 3 parts (1n2w) 9538 | -7/Garrison | Triggered checkpoint 9539 | -7/Garrison | Core integrity fell below 50% 9640 | -7/Garrison | Discovered new exit (range 60) 9640 | -7/Garrison | Discovered new exit (range 54) 9640 | -7/Garrison | Discovered new exit (range 17) 9676 | -7/Garrison | Entered Factory 9676 | -6/Factory | Evolved 2 slots: Utility x2 9766 | -6/Factory | Discovered new exit (range 11) 9857 | -6/Factory | Identified exit to Lower Caves 9881 | -6/Factory | Discovered new exit (range 6) 10726 | -6/Factory | First assault squad dispatched 10940 | -6/Factory | Lost 3 parts (2n1u) 11941 | -6/Factory | Build established: Scavenger-Gunner 12856 | -6/Factory | Lost 3 parts (1n2w) 13073 | -6/Factory | Lost 3 parts (2u1w) 13146 | -6/Factory | Lost 3 parts (1u2w) 13461 | -6/Factory | Core integrity fell below 50% 13655 | -6/Factory | Build established: Scavenger-Tank 14037 | -6/Factory | Lost 3 parts (1u2w) 14114 | -6/Factory | Lost 6 parts (3n3u) 14403 | -6/Factory | Destroyed 8 combat bots 14429 | -6/Factory | Lost 4 parts (1u3w) 14779 | -6/Factory | Core integrity fell below 20% 14785 | -6/Factory | Entered Lower Caves 14786 | -6/Lower Caves | Encountered a Warlord checkpoint 14795 | -6/Lower Caves | Learned 4 Factory zone layouts 14803 | -6/Lower Caves | Identified Active Sensor Suite 14813 | -6/Lower Caves | Lost 6 parts (1p2n2u1w) 15054 | -6/Lower Caves | Build established: Scavenger-Mutant 15347 | -6/Lower Caves | Spotted B-75 Beast 15514 | -6/Lower Caves | Discovered new exit (range 10) 15527 | -6/Lower Caves | Identified exit to Lower Caves 15528 | -6/Lower Caves | Entered another Lower Caves area 15558 | -6/Lower Caves | Identified exit to Factory 15596 | -6/Lower Caves | System corruption reached 10% 15596 | -6/Lower Caves | Entered Factory 15596 | -5/Factory | Evolved 2 slots: Power x1, Utility x1 15896 | -5/Factory | First assault squad dispatched 15977 | -5/Factory | Lost 3 parts (1p1u1w) 16101 | -5/Factory | Cargo convoy interrupted 16132 | -5/Factory | Lost 9 parts (2p2n3u2w) 16137 | -5/Factory | Core integrity fell below 50% 16138 | -5/Factory | Manually triggered Chute Trap 16138 | -5/Factory | Sucked down chute 16138 | -5/Factory | Entered Waste 16142 | -5/Waste | Spotted C-40 Crusher 16146 | -5/Waste | Spotted C-40 Crusher 16148 | -5/Waste | Found Prototype Device 16148 | -5/Waste | Identified Adv. Particle Accelerator 16151 | -5/Waste | Found Adv. Force Booster 16151 | -5/Waste | Spotted C-40 Crusher 16153 | -5/Waste | EMP discharged 16153 | -5/Waste | System corruption reached 10% 16156 | -5/Waste | Spotted C-40 Crusher 16161 | -5/Waste | Found Enh. Force Lance 16168 | -5/Waste | Spotted C-40 Crusher 16169 | -5/Waste | Spotted C-40 Crusher 16173 | -5/Waste | Discovered new exit (range 16) 16179 | -5/Waste | Entered Factory 16317 | -5/Factory | Identified exit to Upper Caves 16317 | -5/Factory | Identified exit to Extension 16602 | -5/Factory | Build established: Hacker-Mutant 16646 | -5/Factory | Discovered new exit (range 7) 16926 | -5/Factory | Repaired Broken Nuclear Pulse Array 16984 | -5/Factory | Entered Extension 17422 | -5/Extension | Build established: Hacker-Gladiator 18532 | -5/Extension | Rescued a captive Derelict 18533 | -5/Extension | Rescued a captive Derelict 18585 | -5/Extension | Rescued A7 18607 | -5/Extension | Build established: Commander-Gladiator 18639 | -5/Extension | Rescued a captive Derelict 18773 | -5/Extension | Rescued a captive Derelict 18773 | -5/Extension | Rescued a captive Derelict 18807 | -5/Extension | Rescued a captive Derelict 18894 | -5/Extension | Repaired Neutrino Core 18945 | -5/Extension | Repaired Lyr. Medium Armor Plating 18991 | -5/Extension | Build established: Hacker-Mutant 19002 | -5/Extension | Repaired KE Penetrator 19042 | -5/Extension | Repaired Adv. Weight Redist. System 19113 | -5/Extension | Repaired Broken Flexi-carbon Leg 19171 | -5/Extension | Repaired Neutrino Core 19228 | -5/Extension | Repaired Phasing Sabre 19286 | -5/Extension | Repaired Nuclear Pulse Array 19697 | -5/Extension | Spotted B-75 Beast 19711 | -5/Extension | Allies destroyed B-75 Beast 19715 | -5/Extension | Spotted B-75 Beast 19733 | -5/Extension | Allies destroyed B-75 Beast 19756 | -5/Extension | Lost 3 allies 19760 | -5/Extension | Discovered new exit (range 3) 20066 | -5/Extension | Lost 3 parts (1n1u1w) 20076 | -5/Extension | Rescued a captive Derelict 20077 | -5/Extension | Lost 6 allies 20077 | -5/Extension | Rescued a captive Derelict 20156 | -5/Extension | Discovered new exit (range 10) 20157 | -5/Extension | Discovered new exit (range 6) 20178 | -5/Extension | Disrupted transfer network 20215 | -5/Extension | Entered Cetus 20215 | -5/Cetus | Accompanied by 12 allies (A7) 20220 | -5/Cetus | Acquired a Cetus Manufacturing Module code from A7 20232 | -5/Cetus | Spotted Cetus Guard 20232 | -5/Cetus | Spotted Cetus Guard 20232 | -5/Cetus | Spotted Cetus Guard 20235 | -5/Cetus | Spotted Cetus Guard 20240 | -5/Cetus | Allies destroyed Cetus Guard 20249 | -5/Cetus | Allies destroyed Cetus Guard 20255 | -5/Cetus | Core integrity fell below 20% 20255 | -5/Cetus | Allies destroyed Cetus Guard 20256 | -5/Cetus | Destroyed Cetus Guard 20282 | -5/Cetus | Lost 6 allies 20413 | -5/Cetus | Started Cetus Manufacturing Module 20438 | -5/Cetus | Manufactured an Enhanced Grunt 20463 | -5/Cetus | Manufactured an Enhanced Grunt 20488 | -5/Cetus | Manufactured an Enhanced Grunt 20513 | -5/Cetus | Manufactured an Enhanced Grunt 20538 | -5/Cetus | Manufactured an Enhanced Grunt 20581 | -5/Cetus | Build established: Scavenger-Tank 20607 | -5/Cetus | Escorted A7 to Cetus Mainframe 20751 | -5/Cetus | Discovered new exit (range 15) 20781 | -5/Cetus | Spotted Cetus Guard 20781 | -5/Cetus | Spotted Cetus Guard 20784 | -5/Cetus | Spotted Cetus Guard 20784 | -5/Cetus | Spotted Cetus Guard 20792 | -5/Cetus | Allies destroyed Cetus Guard 20792 | -5/Cetus | Allies destroyed Cetus Guard 20794 | -5/Cetus | Allies destroyed Cetus Guard 20794 | -5/Cetus | Discovered new exit (range 16) 20795 | -5/Cetus | Allies destroyed Cetus Guard 20819 | -5/Cetus | Met Revision 17 20855 | -5/Cetus | Found Prototype Device 20855 | -5/Cetus | Identified Exp. Thermal Shield 21051 | -5/Cetus | Lost 4 allies 21062 | -5/Cetus | Identified exit to Archives 21069 | -5/Cetus | Entered Archives 21069 | -5/Archives | Accompanied by 7 allies (A7) 21074 | -5/Archives | Received a hacking code to weaken MAIN.C 21132 | -5/Archives | Unable to access archive contents 21142 | -5/Archives | Discovered new exit (range 13) 21284 | -5/Archives | Discovered new exit (range 16) 21326 | -5/Archives | Identified exit to Hub_04(d) 23705 | -5/Archives | Entered Hub_04(d) 23705 | -5/Hub_04(d) | Accompanied by 6 allies 24245 | -5/Hub_04(d) | Network Hub disabled 24327 | -5/Hub_04(d) | Spotted Lightning 24330 | -5/Hub_04(d) | Spotted Lightning 24332 | -5/Hub_04(d) | Spotted Lightning 24333 | -5/Hub_04(d) | Destroyed Lightning 24336 | -5/Hub_04(d) | Destroyed Lightning 24383 | -5/Hub_04(d) | Destroyed Lightning 24393 | -5/Hub_04(d) | Found Exp. Thermal Shield 24417 | -5/Hub_04(d) | Found Prototype Device 24417 | -5/Hub_04(d) | Identified Exp. EM Disruption Field 24426 | -5/Hub_04(d) | Found Prototype Device 24426 | -5/Hub_04(d) | Identified Exp. Phase Shifter 24438 | -5/Hub_04(d) | Found Prototype Energy Cannon 24531 | -5/Hub_04(d) | Network Hub disabled 24612 | -5/Hub_04(d) | Discovered new exit (range 16) 24651 | -5/Hub_04(d) | Identified exit to Factory 24833 | -5/Hub_04(d) | Network Hub disabled 24904 | -5/Hub_04(d) | Entered Factory 24904 | -4/Factory | Evolved 2 slots: Utility x2 24972 | -4/Factory | Found Unknown Device 24997 | -4/Factory | Garrison activated, responded to threat 25391 | -4/Factory | Found Prototype Processor 25391 | -4/Factory | Identified Exp. Targeting Computer 25404 | -4/Factory | First assault squad dispatched 25737 | -4/Factory | Lost 3 parts (1p2u) 26023 | -4/Factory | Identified EMDS 26049 | -4/Factory | Lost 4 parts (4u) 26236 | -4/Factory | System corruption reached 10% 26241 | -4/Factory | Core integrity fell below 50% 26267 | -4/Factory | Lost 15 parts (4n7u4w) 26285 | -4/Factory | Discovered new exit (range 3) 26286 | -4/Factory | Identified exit to Upper Caves 26287 | -4/Factory | Entered Upper Caves 26287 | -4/Upper Caves | Accompanied by 1 ally 26327 | -4/Upper Caves | Core integrity fell below 20% 26359 | -4/Upper Caves | Learned location of Testing (-2) 26464 | -4/Upper Caves | Discovered new exit (range 7) 26466 | -4/Upper Caves | Identified exit to Upper Caves 26474 | -4/Upper Caves | Learned Research stockpile data 26510 | -4/Upper Caves | Build established: Mutant 26532 | -4/Upper Caves | Entered another Upper Caves area 26532 | -4/Upper Caves | Accompanied by 1 ally 26647 | -4/Upper Caves | Spotted B-86 Titan 26973 | -4/Upper Caves | Destroyed by S-27 Virus with Autogun Last Messages --------------- 26932_ Administrator 7a reports 0b10 security level has lowered to 2. 26933_ FQ&Q1:3TX7BYZKHC0:IG,% 26951_ S-27 Virus destroyed. 26955_ Unknown Flight Unit fries itself beyond repair. 26957_ System corrupted: Matter fused (-6). 26957_ Identified Autogun. 26957_ Integrated Corrupted Autogun (+5). 26963_ S-27 Virus destroyed. 26963_ Switching to secondary target: S-27 Virus. 26966_ Activated siege mode. 26966_ Destroyed Unknown Flight Unit. 26968_ Wheel destroyed. 26970_ Autogun fries itself beyond repair. 26972_ Unknown Flight Unit fries itself beyond repair. 26973_ System corrupted: Substantial component data lost. Map ----- +----------------------------------------------------+ | ?????????????????????????????????????????????????? | | ?????????????????????????????????????????????????? | | ?????????????????????????????????????????????????? | | ?????????????????????????????????????????????????? | | ?????????????????????????????????????????????????? | | ?????????????????????????????????????????????????? | | ?????????????????????????????????????????????????? | | ?????????????????????????????????????????????????? | | ?????????????????????????????????????????????????? | | ?????????????????????????????????????????????????? | | ?????????????????????????????????????????????????? | | ?????????????????????????????????????????????????? | | ???????????????????###???????????????????????????? | | ??????????????????## #??????????????????????????? | | ??????????????????# ##????????????????????????? | | ??????????????????# ##???????????????????????? | | ??????????????????# ##??????????????????????? | | ???????????????????# ######?????????????????? | | ?????????????????????# #?????????????????? | | ?????????????????????## ##?????????????????? | | ??????????????????????# ###??##??????????????? | | ?????????????????????## ##???# ##?????????????? | | ????????????????????## #??## ##????????????? | | ???????????????????## ##?# #????????????? | | ???????????????????# #?# ## ???????? | | ???????????????????## @## ????????? | | ????????????????##?## % " #???????????????? | | ????????????????# ## *%s %" ##???????????????? | | ????????????????# ss ####????????????????? | | ????????????????## ### ##???????????????????? | | ?????????????????# #?# ;#???????????????????? | | ??????????##?????# ### ###????????#??????????? | | ???? ### ????# % ##????????? ???????? | | ????# #### ## % ##?????????? ?????? | | ?????# % #### ##??????????? ???? | | ?????# !!#### #???????????? ???? | | ?????# ### ###%! % #??????????? #???? | | ??????????## ???#! %#####??????????? #???? | | ????????????????# #?????####?????? #???? | | ????????????????# ##????# #?????? #????? | | ????????????????## #???## ##????? #?????? | | ?????????????????# #???# ##????? #?????? | | ????????????????## ##### ##???? #####?? | | ???????????????## ##### #?? | | ???????????????# #? | | ???????????????# ###### #? | | ???????????????######????############## ###??????? | | ?????????????????????????????????????????????????? | | ?????????????????????????????????????????????????? | | ?????????????????????????????????????????????????? | +----------------------------------------------------+ Best States ------------- Heat Dissipation 97 Coolant Potential 80 Energy Generation 57 Energy Capacity 600 Matter Stores 300 Matter Capacity 300 Sight Range 18 Robot Scan Range 20 Terrain Scan Range 20 Terrain Scan Density 10 Power Amplification 30 Additional Mass Support 9 Armor Coverage 1350 Resistance: TH 30 Resistance: EM 75 Core Shielding 30 Propulsion Shielding 33 Weapon Cycling 30 Phase Shifting 20 Evasion (%) 62 Targeting Accuracy 16 Target Analysis 5 Core Analysis 9 Armor Integrity Analysis 30 Recoil Reduction 4 Particle Charging 20 Force Boost 40 Salvage Targeting 2 Offensive Hacking 26 Defensive Hacking 40 Item Schematics ----------------- Q-thruster | -5/Extension | Hacked Biometal Leg | -5/Extension | Hacked Adv. System Restoration Module | -5/Extension | Hacked Antimissile System | -5/Extension | Hacked Robot Schematics ------------------ None Fabricated ------------ Nothing Alien Tech Used ----------------- None Achievements -------------- Main Advantage Challenges ------------ None Game ------ Seed TargetingCombatEdition Manual? 0 Play Time 03:17:29 Cumulative 253.1 hours Start 2024.04.22 @ 22:55:05 End 2024.04.23 @ 02:20:04 Sessions 1 Manual Loads 0 Difficulty Rogue Special Mode None Game No. 193 Rogue 193 Adventurer 0 Explorer 0 Win Type - Total 7 Types 6/0/0/1/0/0/0/0/0 Lore% 76 Gallery% 82 Achievement% 68 Wizard Run 0 Options --------- Layout 2 ASCII 1 Keyboard 0 Movement Mouse Keybinds 0 Fullscreen 2 Font 24/Smallcaps Map View 50x44 Zoom Use 0% Tactical HUD 1 Map Filters NONE Filters NONE Steam 1 RUN: badccf7f-e420-4f0b-956c-da943fa7bf21